[Event "17th Memorial Lezcano Montalvo 2025"]
[Site "Gran Canaria"]
[Date "2025.04.20"]
[Round "9.27"]
[White "Halldorsson, Halldor"]
[Black "Lascar, Radoslawa"]
[Result "1-0"]
[Annotator "NA"]
[ECO "B30"]
[WhiteElo "2103"]
[BlackElo "1897"]
[PlyCount "71"]
[EventDate "2025.04.13"]
[EventType "swiss"]
[EventCountry "ESP"]
[SourceTitle "playchess.com"]
[Source "ChessBase"]
[SourceQuality "1"]
[TimeControl "5400+30"]

1. e4 {[%emt 0:00:15]} c5 {[%emt 0:00:10]} 2. Nf3 {[%emt 0:00:22]} Nc6 {[%emt 0:00:13]} 3. Bb5 {[%emt 0:00:31]} e5 {[%emt 0:00:13]} 4. O-O {[%emt 0:00:54]} Be7 {[%emt 0:00:13]} 5. c3 {[%emt 0:02:19]} Nf6 {[%emt 0:00:37]} 6. d4 {[%emt 0:02:46]} cxd4 {[%emt 0:00:14]} 7. cxd4 {[%emt 0:00:07]} exd4 {[%emt 0:00:11]} 8. e5 {[%emt 0:01:32]} Nd5 {[%emt 0:01:41]} 9. Nxd4 {[%emt 0:01:07]} O-O {[%emt 0:04:21]} 10. Re1 {[%emt 0:05:39]} Qb6 {[%emt 0:04:25]} 11. Re4 {[%emt 0:13:01]} Bc5 {[%emt 0:06:02]} 12. Bc4 {[%emt 0:02:58]} Bxd4 {[%emt 0:10:39]} 13. Bxd5 {[%emt 0:00:25]} Bxf2+ {[%emt 0:03:08]} 14. Kh1 {[%emt 0:00:35]} Ne7 {[%emt 0:13:35]} 15. Nc3 {[%emt 0:04:10]} Ng6 {[%emt 0:08:44]} 16. b3 {[%emt 0:03:36]} d6 {[%emt 0:14:25]} 17. exd6 {[%emt 0:05:20]} Bf5 {[%emt 0:00:31]} 18. Na4 {[%emt 0:05:30]} Qa5 {[%emt 0:07:05]} 19. Re7 {[%emt 0:04:26]} Bh4 {[%emt 0:11:50]} 20. Ba3 {[%emt 0:04:22]} Nxe7 {[%emt 0:03:32]} 21. dxe7 {[%emt 0:00:10]} Rfe8 {[%emt 0:00:16]} 22. Bxf7+ {[%emt 0:05:25]} Kxf7 {[%emt 0:00:47]} 23. Qh5+ {[%emt 0:00:08]} Kg8 {[%emt 0:01:05]} 24. Qxh4 {[%emt 0:00:10]} b5 {[%emt 0:01:21]} 25. Qg5 {[%emt 0:37:12]} Bg6 {[%emt 0:07:42]} 26. Rf1 {[%emt 0:00:00]} Qc7 {[%emt 0:00:00]} 27. Qd5+ {[%emt 0:00:00]} Kh8 {[%emt 0:00:00]} 28. Qxa8 {[%emt 0:00:00]} Qxe7 {[%emt 0:00:55]} 29. Bxe7 {[%emt 0:00:00]} Rxa8 {[%emt 0:01:05]} 30. Nc3 {[%emt 0:00:00]} Kg8 {[%emt 0:00:00]} 31. Bc5 {[%emt 0:00:00]} Rc8 {[%emt 0:00:05]} 32. Nd5 {[%emt 0:00:00]} Kh8 {[%emt 0:00:52]} 33. Ne7 {[%emt 0:00:00]} Bd3 {[%emt 0:00:28]} 34. Rf3 {[%emt 0:00:00]} Rd8 {[%emt 0:00:28]} 35. Nc6 {[%emt 0:00:00]} Re8 {[%emt 0:00:32]} 36. Rxd3 {[%emt 0:00:00]} 1-0

[Event "17th Memorial Lezcano Montalvo 2025"]
[Site "Gran Canaria"]
[Date "2025.04.20"]
[Round "9.28"]
[White "Hu, Jiani"]
[Black "Gonzalez Perdomo, Sergio"]
[Result "1/2-1/2"]
[Annotator "NA"]
[ECO "E05"]
[WhiteElo "2091"]
[BlackElo "1880"]
[PlyCount "48"]
[EventDate "2025.04.13"]
[EventType "swiss"]
[EventCountry "ESP"]
[SourceTitle "playchess.com"]
[Source "ChessBase"]
[SourceQuality "1"]
[TimeControl "5400+30"]

1. d4 {[%emt 0:00:03]} Nf6 {[%emt 0:00:09]} 2. c4 {[%emt 0:00:10]} e6 {[%emt 0:00:10]} 3. g3 {[%emt 0:00:21]} d5 {[%emt 0:00:12]} 4. Bg2 {[%emt 0:00:11]} Be7 {[%emt 0:00:10]} 5. Nf3 {[%emt 0:00:20]} O-O {[%emt 0:00:24]} 6. O-O {[%emt 0:00:11]} dxc4 {[%emt 0:00:18]} 7. Qc2 {[%emt 0:00:17]} b5 {[%emt 0:00:33]} 8. a4 {[%emt 0:01:46]} b4 {[%emt 0:00:07]} 9. Ne5 {[%emt 0:03:12]} Nd5 {[%emt 0:02:34]} 10. Nxc4 {[%emt 0:02:37]} c5 {[%emt 0:02:05]} 11. e4 {[%emt 0:11:12]} Nf6 {[%emt 0:03:24]} 12. dxc5 {[%emt 0:02:36]} Ba6 {[%emt 0:10:02]} 13. Rd1 {[%emt 0:04:30]} Nbd7 {[%emt 0:06:55]} 14. Nd6 {[%emt 0:11:22]} Qc7 {[%emt 0:24:04]} 15. Bg5 {[%emt 0:10:12]} Rad8 {[%emt 0:07:46]} 16. Nb5 {[%emt 0:03:01]} Qxc5 {[%emt 0:04:00]} 17. Qxc5 {[%emt 0:00:56]} Nxc5 {[%emt 0:01:06]} 18. Nd2 {[%emt 0:01:56]} Rd7 {[%emt 0:06:09]} 19. e5 {[%emt 0:04:07]} Nd5 {[%emt 0:03:43]} 20. Bxe7 {[%emt 0:00:43]} Nxe7 {[%emt 0:01:12]} 21. Nd6 {[%emt 0:09:20]} Nf5 {[%emt 0:06:01]} 22. Bc6 {[%emt 0:04:26]} Rc7 {[%emt 0:00:41]} 23. Bb5 {[%emt 0:02:07]} Bxb5 {[%emt 0:04:54]} 24. axb5 {[%emt 0:00:53]} f6 {[%emt 0:04:45]} 1/2-1/2

[Event "17th Memorial Lezcano Montalvo 2025"]
[Site "Gran Canaria"]
[Date "2025.04.20"]
[Round "9.29"]
[White "Arlet, Benjamin Andres"]
[Black "Cruz Ramirez, Nauzet"]
[Result "0-1"]
[Annotator "NA"]
[ECO "B12"]
[WhiteElo "1721"]
[BlackElo "2076"]
[PlyCount "34"]
[EventDate "2025.04.13"]
[EventType "swiss"]
[EventCountry "ESP"]
[SourceTitle "playchess.com"]
[Source "ChessBase"]
[SourceQuality "1"]
[TimeControl "5400+30"]

1. e4 {[%emt 0:01:06]} c6 {[%emt 0:00:06]} 2. d4 {[%emt 0:01:42]} d5 {[%emt 0:00:05]} 3. e5 {[%emt 0:00:03]} c5 {[%emt 0:00:06]} 4. dxc5 {[%emt 0:00:05]} e6 {[%emt 0:00:12]} 5. Be3 {[%emt 0:00:04]} Nd7 {[%emt 0:00:26]} 6. Bb5 {[%emt 0:00:33]} Qc7 {[%emt 0:00:08]} 7. Nf3 {[%emt 0:00:58]} Bxc5 {[%emt 0:00:32]} 8. Bxc5 {[%emt 0:01:28]} Qxc5 {[%emt 0:00:13]} 9. Qe2 {[%emt 0:00:26]} Ne7 {[%emt 0:00:47]} 10. O-O {[%emt 0:00:39]} O-O {[%emt 0:01:10]} 11. Nbd2 {[%emt 0:03:26]} Ng6 {[%emt 0:01:16]} 12. g3 {[%emt 0:01:45]} Ndxe5 {[%emt 0:02:29]} 13. Bd3 {[%emt 0:08:31]} Nxd3 {[%emt 0:01:59]} 14. cxd3 {[%emt 0:00:02]} Qb6 {[%emt 0:01:18]} 15. h4 {[%emt 0:03:18]} Ne7 {[%emt 0:11:29]} 16. h5 {[%emt 0:01:30]} Nf5 {[%emt 0:00:10]} 17. Nb3 {[%emt 0:00:09]} Nxg3 {[%emt 0:00:17]} 0-1

[Event "17th Memorial Lezcano Montalvo 2025"]
[Site "Gran Canaria"]
[Date "2025.04.20"]
[Round "9.30"]
[White "Matos Espino, Carlos Silverio"]
[Black "Sosa Suarez, Carla Cristina"]
[Result "1/2-1/2"]
[Annotator "NA"]
[ECO "B15"]
[WhiteElo "1731"]
[BlackElo "2056"]
[PlyCount "85"]
[EventDate "2025.04.13"]
[EventType "swiss"]
[EventCountry "ESP"]
[SourceTitle "playchess.com"]
[Source "ChessBase"]
[SourceQuality "1"]
[TimeControl "5400+30"]

1. e4 {[%emt 0:00:03]} c6 {[%emt 0:00:03]} 2. d4 {[%emt 0:00:24]} d5 {[%emt 0:00:04]} 3. Nc3 {[%emt 0:00:06]} dxe4 {[%emt 0:00:05]} 4. Nxe4 {[%emt 0:00:26]} Nf6 {[%emt 0:00:07]} 5. Nxf6+ {[%emt 0:03:54]} exf6 {[%emt 0:00:19]} 6. Bf4 {[%emt 0:01:49]} Be6 {[%emt 0:05:39]} 7. Nf3 {[%emt 0:05:07]} Na6 {[%emt 0:05:43]} 8. a3 {[%emt 0:02:35]} g5 {[%emt 0:03:03]} 9. Be3 {[%emt 0:01:00]} Nc7 {[%emt 0:05:12]} 10. c4 {[%emt 0:05:11]} Bg7 {[%emt 0:03:14]} 11. Be2 {[%emt 0:05:39]} g4 {[%emt 0:02:02]} 12. Nd2 {[%emt 0:04:45]} f5 {[%emt 0:01:22]} 13. Nb3 {[%emt 0:00:11]} b6 {[%emt 0:01:01]} 14. Qc2 {[%emt 0:10:47]} Qe7 {[%emt 0:05:02]} 15. Bd3 {[%emt 0:07:14]} f4 {[%emt 0:03:59]} 16. Bxf4 {[%emt 0:00:05]} Bxc4+ {[%emt 0:04:17]} 17. Kd2 {[%emt 0:00:53]} Bd5 {[%emt 0:03:30]} 18. Rhe1 {[%emt 0:03:53]} Ne6 {[%emt 0:01:06]} 19. Be4 {[%emt 0:00:15]} Qd7 {[%emt 0:07:44]} 20. Bxd5 {[%emt 0:02:38]} Qxd5 {[%emt 0:00:31]} 21. Be5 {[%emt 0:00:34]} O-O-O {[%emt 0:07:31]} 22. Bxg7 {[%emt 0:04:51]} Nxg7 {[%emt 0:00:50]} 23. Rad1 {[%emt 0:03:37]} Qg5+ {[%emt 0:06:28]} 24. Ke2 {[%emt 0:05:27]} Qb5+ {[%emt 0:07:45]} 25. Qd3 {[%emt 0:01:13]} Rhe8+ {[%emt 0:00:59]} 26. Kd2 {[%emt 0:02:20]} Qxd3+ {[%emt 0:02:39]} 27. Kxd3 {[%emt 0:00:03]} Ne6 {[%emt 0:00:39]} 28. g3 {[%emt 0:02:35]} c5 {[%emt 0:03:50]} 29. Kc4 {[%emt 0:01:25]} cxd4 {[%emt 0:08:27]} 30. Nxd4 {[%emt 0:00:17]} Ng5 {[%emt 0:02:48]} 31. Rxe8 {[%emt 0:02:46]} Rxe8 {[%emt 0:00:02]} 32. Nb5 {[%emt 0:00:08]} Re2 {[%emt 0:01:59]} 33. Rd4 {[%emt 0:01:57]} Nf3 {[%emt 0:04:52]} 34. Rf4 {[%emt 0:05:11]} Rxf2 {[%emt 0:01:14]} 35. Nd6+ {[%emt 0:01:39]} Kd7 {[%emt 0:00:35]} 36. Nxf7 {[%emt 0:00:11]} Rxh2 {[%emt 0:00:41]} 37. Rxg4 {[%emt 0:00:55]} Rxb2 {[%emt 0:00:56]} 38. Rg7 {[%emt 0:00:40]} Ke6 {[%emt 0:00:51]} 39. Rxh7 {[%emt 0:00:28]} Rg2 {[%emt 0:00:42]} 40. Nd8+ {[%emt 0:00:39]} Kd6 {[%emt 0:00:26]} 41. Rxa7 {[%emt 0:00:21]} Rxg3 {[%emt 0:01:11]} 42. Nf7+ {[%emt 0:00:22]} Kc6 {[%emt 0:00:27]} 43. Nd8+ {[%emt 0:17:26]} 1/2-1/2

[Event "17th Memorial Lezcano Montalvo 2025"]
[Site "Gran Canaria"]
[Date "2025.04.20"]
[Round "9.31"]
[White "Sanchez Gonzalez, Diego"]
[Black "Ludishev, Artem"]
[Result "1/2-1/2"]
[Annotator "NA"]
[ECO "B45"]
[WhiteElo "2025"]
[BlackElo "1874"]
[PlyCount "118"]
[EventDate "2025.04.13"]
[EventType "swiss"]
[EventCountry "ESP"]
[SourceTitle "playchess.com"]
[Source "ChessBase"]
[SourceQuality "1"]
[TimeControl "5400+30"]

1. e4 {[%emt 0:00:03]} c5 {[%emt 0:00:43]} 2. Nf3 {[%emt 0:00:27]} Nc6 {[%emt 0:00:35]} 3. d4 {[%emt 0:00:09]} cxd4 {[%emt 0:00:04]} 4. Nxd4 {[%emt 0:00:07]} Nf6 {[%emt 0:00:05]} 5. Nc3 {[%emt 0:00:09]} e6 {[%emt 0:00:05]} 6. a3 {[%emt 0:01:11]} Be7 {[%emt 0:00:06]} 7. Be2 {[%emt 0:00:37]} d5 {[%emt 0:00:30]} 8. exd5 {[%emt 0:12:15]} Nxd5 {[%emt 0:02:40]} 9. Nxd5 {[%emt 0:08:35]} exd5 {[%emt 0:01:08]} 10. Be3 {[%emt 0:00:31]} O-O {[%emt 0:00:31]} 11. O-O {[%emt 0:00:20]} Ne5 {[%emt 0:02:29]} 12. Nf3 {[%emt 0:02:00]} Nc4 {[%emt 0:02:28]} 13. Bd4 {[%emt 0:00:22]} Be6 {[%emt 0:00:20]} 14. b3 {[%emt 0:00:21]} Nd6 {[%emt 0:01:47]} 15. Bb2 {[%emt 0:05:15]} Rc8 {[%emt 0:09:37]} 16. Nd4 {[%emt 0:01:30]} Bf6 {[%emt 0:00:17]} 17. Re1 {[%emt 0:23:54]} Nf5 {[%emt 0:07:21]} 18. Nxe6 {[%emt 0:06:07]} fxe6 {[%emt 0:00:01]} 19. Bxf6 {[%emt 0:00:50]} Qxf6 {[%emt 0:01:18]} 20. Bd3 {[%emt 0:00:11]} e5 {[%emt 0:06:20]} 21. Bxf5 {[%emt 0:07:03]} Qxf5 {[%emt 0:00:01]} 22. Qxd5+ {[%emt 0:00:08]} Kh8 {[%emt 0:00:03]} 23. c4 {[%emt 0:04:01]} Qxf2+ {[%emt 0:00:21]} 24. Kh1 {[%emt 0:00:02]} h6 {[%emt 0:11:32]} 25. Rac1 {[%emt 0:08:53]} Rce8 {[%emt 0:03:42]} 26. h3 {[%emt 0:04:48]} b6 {[%emt 0:00:49]} 27. Rxe5 {[%emt 0:01:00]} Qb2 {[%emt 0:00:23]} 28. Rce1 {[%emt 0:01:34]} Rxe5 {[%emt 0:00:19]} 29. Qxe5 {[%emt 0:00:08]} Qxb3 {[%emt 0:01:26]} 30. Qe7 {[%emt 0:00:18]} Rc8 {[%emt 0:00:52]} 31. Re4 {[%emt 0:00:57]} a5 {[%emt 0:02:22]} 32. Rg4 {[%emt 0:02:16]} Qb2 {[%emt 0:01:09]} 33. Kh2 {[%emt 0:03:54]} Rc5 {[%emt 0:11:59]} 34. Qe8+ {[%emt 0:01:26]} Kh7 {[%emt 0:00:02]} 35. Qg6+ {[%emt 0:00:13]} Kh8 {[%emt 0:00:02]} 36. Re4 {[%emt 0:00:27]} Rc8 {[%emt 0:04:49]} 37. Qe6 {[%emt 0:03:03]} Rf8 {[%emt 0:00:44]} 38. Qd6 {[%emt 0:00:35]} Qf2 {[%emt 0:05:05]} 39. Qg6 {[%emt 0:01:50]} Qf6 {[%emt 0:00:45]} 40. Qg3 {[%emt 0:00:22]} Kh7 {[%emt 0:00:58]} 41. Qe3 {[%emt 0:00:33]} Qd6+ {[%emt 0:00:25]} 42. Kg1 {[%emt 0:02:02]} Rf6 {[%emt 0:00:50]} 43. Rd4 {[%emt 0:00:33]} Qe6 {[%emt 0:03:44]} 44. Re4 {[%emt 0:00:43]} Qf5 {[%emt 0:00:15]} 45. Kh2 {[%emt 0:00:39]} Qf1 {[%emt 0:03:46]} 46. c5 {[%emt 0:00:32]} bxc5 {[%emt 0:00:18]} 47. Qxc5 {[%emt 0:00:11]} Qf5 {[%emt 0:00:49]} 48. Qe3 {[%emt 0:00:17]} Qd7 {[%emt 0:01:37]} 49. Re5 {[%emt 0:00:58]} Qd6 {[%emt 0:02:11]} 50. Qe4+ {[%emt 0:00:07]} Kh8 {[%emt 0:00:42]} 51. Qd5 {[%emt 0:00:38]} Qxa3 {[%emt 0:02:47]} 52. Re8+ {[%emt 0:00:25]} Rf8 {[%emt 0:00:15]} 53. Rxf8+ {[%emt 0:00:18]} Qxf8 {[%emt 0:00:02]} 54. Qxa5 {[%emt 0:00:03]} Qf4+ {[%emt 0:00:12]} 55. Kg1 {[%emt 0:00:10]} Qe3+ {[%emt 0:00:33]} 56. Kh1 {[%emt 0:00:11]} Qc1+ {[%emt 0:00:11]} 57. Kh2 {[%emt 0:00:08]} Qf4+ {[%emt 0:00:08]} 58. Kg1 {[%emt 0:00:09]} Qc1+ {[%emt 0:00:07]} 59. Kf2 {[%emt 0:00:07]} Qf4+ {[%emt 0:00:07]} 1/2-1/2

[Event "17th Memorial Lezcano Montalvo 2025"]
[Site "Gran Canaria"]
[Date "2025.04.20"]
[Round "9.32"]
[White "Gonzalez Martinez, Miguel Angel"]
[Black "Sanchez Ramirez, Gustavo"]
[Result "1-0"]
[Annotator "NA"]
[ECO "C70"]
[WhiteElo "2134"]
[BlackElo "1780"]
[PlyCount "49"]
[EventDate "2025.04.13"]
[EventType "swiss"]
[EventCountry "ESP"]
[SourceTitle "playchess.com"]
[Source "ChessBase"]
[SourceQuality "1"]
[TimeControl "5400+30"]

1. e4 {[%emt 0:00:02]} e5 {[%emt 0:00:24]} 2. Nf3 {[%emt 0:00:11]} Nc6 {[%emt 0:00:19]} 3. Bb5 {[%emt 0:00:31]} a6 {[%emt 0:00:19]} 4. Ba4 {[%emt 0:00:10]} Bc5 {[%emt 0:01:18]} 5. c3 {[%emt 0:03:20]} Nge7 {[%emt 0:01:56]} 6. Qe2 {[%emt 0:06:41]} O-O {[%emt 0:01:32]} 7. O-O {[%emt 0:00:33]} d5 {[%emt 0:05:50]} 8. d3 {[%emt 0:15:50]} d4 {[%emt 0:08:29]} 9. Nbd2 {[%emt 0:00:53]} Be6 {[%emt 0:04:12]} 10. Rd1 {[%emt 0:08:32]} f6 {[%emt 0:00:21]} 11. Nf1 {[%emt 0:00:42]} b5 {[%emt 0:03:06]} 12. Bb3 {[%emt 0:02:54]} Qd6 {[%emt 0:01:28]} 13. Ng3 {[%emt 0:02:25]} Rfd8 {[%emt 0:04:06]} 14. Qc2 {[%emt 0:05:09]} Bb6 {[%emt 0:04:47]} 15. Ne2 {[%emt 0:07:09]} Na5 {[%emt 0:05:07]} 16. Bxe6+ {[%emt 0:00:48]} Qxe6 {[%emt 0:00:02]} 17. cxd4 {[%emt 0:00:53]} exd4 {[%emt 0:00:02]} 18. b4 {[%emt 0:06:49]} Nac6 {[%emt 0:01:45]} 19. a3 {[%emt 0:08:04]} Ng6 {[%emt 0:00:54]} 20. Nf4 {[%emt 0:02:53]} Nxf4 {[%emt 0:00:34]} 21. Bxf4 {[%emt 0:00:03]} Ne5 {[%emt 0:01:23]} 22. Bxe5 {[%emt 0:01:17]} fxe5 {[%emt 0:00:03]} 23. Ng5 {[%emt 0:00:22]} Qf6 {[%emt 0:08:22]} 24. Qb3+ {[%emt 0:01:32]} Kf8 {[%emt 0:00:19]} 25. Nxh7+ {[%emt 0:00:09]} 1-0

[Event "17th Memorial Lezcano Montalvo 2025"]
[Site "Gran Canaria"]
[Date "2025.04.20"]
[Round "9.36"]
[White "Martinez Correa, Rafael"]
[Black "Perez Rosales, Pedro"]
[Result "1-0"]
[Annotator "NA"]
[ECO "C41"]
[WhiteElo "1719"]
[BlackElo "1942"]
[PlyCount "27"]
[EventDate "2025.04.13"]
[EventType "swiss"]
[EventCountry "ESP"]
[SourceTitle "playchess.com"]
[Source "ChessBase"]
[SourceQuality "1"]
[TimeControl "5400+30"]

1. e4 {[%emt 0:00:03]} d6 {[%emt 0:02:19]} 2. d4 {[%emt 0:00:10]} Nf6 {[%emt 0:00:31]} 3. Nc3 {[%emt 0:00:06]} e5 {[%emt 0:00:10]} 4. Nf3 {[%emt 0:00:08]} Nbd7 {[%emt 0:00:10]} 5. g4 {[%emt 0:02:08]} g6 {[%emt 0:02:22]} 6. h3 {[%emt 0:03:12]} Bg7 {[%emt 0:00:12]} 7. Be3 {[%emt 0:00:21]} c6 {[%emt 0:00:14]} 8. Qd2 {[%emt 0:00:20]} Qa5 {[%emt 0:00:08]} 9. Bd3 {[%emt 0:03:53]} h5 {[%emt 0:18:14]} 10. g5 {[%emt 0:03:53]} Nh7 {[%emt 0:01:38]} 11. dxe5 {[%emt 0:03:27]} dxe5 {[%emt 0:02:42]} 12. O-O-O {[%emt 0:00:20]} Nhf8 {[%emt 0:00:51]} 13. Bc4 {[%emt 0:01:31]} Nc5 {[%emt 0:00:55]} 14. Bxc5 {[%emt 0:00:14]} 1-0

[Event "17th Memorial Lezcano Montalvo 2025"]
[Site "Gran Canaria"]
[Date "2025.04.20"]
[Round "9.37"]
[White "Garcia Rodriguez, Adriana"]
[Black "Guerra Aleman, Marcial"]
[Result "1-0"]
[Annotator "NA"]
[ECO "B07"]
[WhiteElo "1893"]
[BlackElo "1766"]
[PlyCount "87"]
[EventDate "2025.04.13"]
[EventType "swiss"]
[EventCountry "ESP"]
[SourceTitle "playchess.com"]
[Source "ChessBase"]
[SourceQuality "1"]
[TimeControl "5400+30"]

1. e4 {[%emt 0:00:04]} d6 {[%emt 0:00:11]} 2. d4 {[%emt 0:00:05]} Nf6 {[%emt 0:00:06]} 3. Nc3 {[%emt 0:00:08]} g6 {[%emt 0:00:07]} 4. Be3 {[%emt 0:00:33]} Ng4 {[%emt 0:01:45]} 5. Bg5 {[%emt 0:00:13]} h6 {[%emt 0:01:23]} 6. Bh4 {[%emt 0:00:15]} Bg7 {[%emt 0:00:11]} 7. Qd2 {[%emt 0:02:16]} g5 {[%emt 0:06:08]} 8. Bg3 {[%emt 0:00:30]} e5 {[%emt 0:01:52]} 9. d5 {[%emt 0:05:55]} f5 {[%emt 0:02:32]} 10. f3 {[%emt 0:03:18]} f4 {[%emt 0:01:55]} 11. Bf2 {[%emt 0:01:57]} Nxf2 {[%emt 0:00:09]} 12. Qxf2 {[%emt 0:00:04]} h5 {[%emt 0:04:50]} 13. g3 {[%emt 0:05:51]} Qf6 {[%emt 0:10:03]} 14. Nge2 {[%emt 0:11:45]} Nd7 {[%emt 0:14:09]} 15. Nb5 {[%emt 0:03:13]} Qd8 {[%emt 0:03:15]} 16. Rg1 {[%emt 0:14:51]} a6 {[%emt 0:03:03]} 17. Nbc3 {[%emt 0:00:05]} Bf6 {[%emt 0:00:29]} 18. O-O-O {[%emt 0:07:36]} Nb6 {[%emt 0:02:59]} 19. gxf4 {[%emt 0:04:26]} exf4 {[%emt 0:10:40]} 20. h4 {[%emt 0:04:04]} g4 {[%emt 0:04:39]} 21. fxg4 {[%emt 0:08:47]} Bxh4 {[%emt 0:00:32]} 22. Qd4 {[%emt 0:05:29]} Bf6 {[%emt 0:01:55]} 23. Qd3 {[%emt 0:01:14]} hxg4 {[%emt 0:07:10]} 24. Kb1 {[%emt 0:00:34]} Be5 {[%emt 0:01:47]} 25. Nd4 {[%emt 0:02:27]} Qf6 {[%emt 0:00:43]} 26. Nf5 {[%emt 0:01:53]} g3 {[%emt 0:06:25]} 27. Be2 {[%emt 0:01:14]} Bxf5 {[%emt 0:03:18]} 28. exf5 {[%emt 0:00:03]} O-O-O {[%emt 0:00:11]} 29. Ne4 {[%emt 0:00:21]} Qg7 {[%emt 0:01:18]} 30. Rdf1 {[%emt 0:01:23]} Nd7 {[%emt 0:02:20]} 31. f6 {[%emt 0:04:06]} Nxf6 {[%emt 0:01:33]} 32. Nxf6 {[%emt 0:00:06]} g2 {[%emt 0:00:49]} 33. Bg4+ {[%emt 0:00:58]} Kb8 {[%emt 0:01:16]} 34. Rxg2 {[%emt 0:00:36]} Qxf6 {[%emt 0:00:35]} 35. Be2 {[%emt 0:00:58]} Rdg8 {[%emt 0:01:09]} 36. Rgf2 {[%emt 0:00:19]} Rh4 {[%emt 0:03:45]} 37. Qb3 {[%emt 0:00:45]} Ka8 {[%emt 0:00:48]} 38. Rf3 {[%emt 0:00:50]} Rgh8 {[%emt 0:00:23]} 39. Qa3 {[%emt 0:01:13]} Ka7 {[%emt 0:00:43]} 40. Qa5 {[%emt 0:01:08]} Qg7 {[%emt 0:01:23]} 41. Bxa6 {[%emt 0:02:29]} bxa6 {[%emt 0:01:09]} 42. Ra3 {[%emt 0:00:07]} c5 {[%emt 0:01:14]} 43. Qxa6+ {[%emt 0:00:43]} Kb8 {[%emt 0:00:01]} 44. Rb3+ {[%emt 0:00:17]} 1-0

[Event "17th Memorial Lezcano Montalvo 2025"]
[Site "Gran Canaria"]
[Date "2025.04.20"]
[Round "9.38"]
[White "Julien Casteleiro, Ariel"]
[Black "Quintero Hernandez, Marcos Jesus"]
[Result "1/2-1/2"]
[Annotator "NA"]
[ECO "B13"]
[WhiteElo "1761"]
[BlackElo "1874"]
[PlyCount "142"]
[EventDate "2025.04.13"]
[EventType "swiss"]
[EventCountry "ESP"]
[SourceTitle "playchess.com"]
[Source "ChessBase"]
[SourceQuality "1"]
[TimeControl "5400+30"]

1. d4 {[%emt 0:00:25]} d5 {[%emt 0:00:30]} 2. Bf4 {[%emt 0:00:18]} c5 {[%emt 0:00:17]} 3. e3 {[%emt 0:01:26]} cxd4 {[%emt 0:00:38]} 4. exd4 {[%emt 0:00:16]} Qb6 {[%emt 0:00:13]} 5. Nc3 {[%emt 0:03:27]} Nf6 {[%emt 0:02:21]} 6. Rb1 {[%emt 0:01:26]} Bd7 {[%emt 0:00:51]} 7. Nf3 {[%emt 0:01:13]} g6 {[%emt 0:00:54]} 8. h3 {[%emt 0:01:01]} Bg7 {[%emt 0:00:20]} 9. Be2 {[%emt 0:00:29]} O-O {[%emt 0:00:26]} 10. O-O {[%emt 0:01:18]} Nc6 {[%emt 0:01:27]} 11. Nb5 {[%emt 0:06:24]} a6 {[%emt 0:03:05]} 12. Bc7 {[%emt 0:00:42]} Qxc7 {[%emt 0:00:18]} 13. Nxc7 {[%emt 0:00:23]} Rac8 {[%emt 0:00:01]} 14. Nxa6 {[%emt 0:01:14]} bxa6 {[%emt 0:00:02]} 15. Bxa6 {[%emt 0:00:23]} Ra8 {[%emt 0:00:02]} 16. Bb7 {[%emt 0:01:17]} Rxa2 {[%emt 0:00:33]} 17. Bxc6 {[%emt 0:00:49]} Bxc6 {[%emt 0:00:01]} 18. Ne5 {[%emt 0:00:37]} Bb5 {[%emt 0:00:19]} 19. Re1 {[%emt 0:00:50]} Rc8 {[%emt 0:00:42]} 20. c3 {[%emt 0:00:24]} Raa8 {[%emt 0:00:06]} 21. Qf3 {[%emt 0:01:00]} e6 {[%emt 0:00:23]} 22. Ra1 {[%emt 0:01:13]} Rab8 {[%emt 0:00:01]} 23. Ra7 {[%emt 0:00:40]} Be8 {[%emt 0:00:02]} 24. Re2 {[%emt 0:05:35]} Rb6 {[%emt 0:00:09]} 25. b4 {[%emt 0:02:30]} Rbb8 {[%emt 0:00:01]} 26. Rea2 {[%emt 0:01:51]} Rd8 {[%emt 0:00:04]} 27. Rc7 {[%emt 0:00:42]} Rdc8 {[%emt 0:00:25]} 28. Raa7 {[%emt 0:00:32]} Rxc7 {[%emt 0:00:08]} 29. Rxc7 {[%emt 0:00:21]} Ra8 {[%emt 0:00:01]} 30. Qd1 {[%emt 0:01:24]} Ne4 {[%emt 0:00:19]} 31. f3 {[%emt 0:01:46]} Nd6 {[%emt 0:00:08]} 32. Qb1 {[%emt 0:01:56]} Bf6 {[%emt 0:00:57]} 33. Nc6 {[%emt 0:12:30]} Bxc6 {[%emt 0:02:37]} 34. Rxc6 {[%emt 0:01:02]} Nc4 {[%emt 0:00:02]} 35. b5 {[%emt 0:01:34]} Ra7 {[%emt 0:00:03]} 36. Ra6 {[%emt 0:02:00]} Rb7 {[%emt 0:00:03]} 37. b6 {[%emt 0:01:29]} Kg7 {[%emt 0:00:06]} 38. Qb5 {[%emt 0:00:54]} Bd8 {[%emt 0:00:43]} 39. Qc6 {[%emt 0:00:51]} Rxb6 {[%emt 0:00:13]} 40. Rxb6 {[%emt 0:01:05]} Bxb6 {[%emt 0:00:01]} 41. Kf1 {[%emt 0:01:08]} Ba5 {[%emt 0:00:47]} 42. Ke2 {[%emt 0:00:36]} Bxc3 {[%emt 0:00:21]} 43. Kd3 {[%emt 0:00:33]} Be1 {[%emt 0:00:10]} 44. Qc7 {[%emt 0:00:39]} Bh4 {[%emt 0:00:28]} 45. Qb8 {[%emt 0:01:21]} Bf6 {[%emt 0:00:09]} 46. f4 {[%emt 0:00:57]} h6 {[%emt 0:00:07]} 47. g3 {[%emt 0:01:24]} Be7 {[%emt 0:00:19]} 48. Qc7 {[%emt 0:02:02]} Bd6 {[%emt 0:00:51]} 49. Qd8 {[%emt 0:01:01]} Ba3 {[%emt 0:01:58]} 50. g4 {[%emt 0:00:48]} Bc1 {[%emt 0:00:15]} 51. f5 {[%emt 0:00:50]} gxf5 {[%emt 0:00:18]} 52. gxf5 {[%emt 0:00:27]} Bg5 {[%emt 0:00:42]} 53. Qd7 {[%emt 0:00:28]} Kf6 {[%emt 0:00:20]} 54. fxe6 {[%emt 0:00:51]} fxe6 {[%emt 0:00:02]} 55. h4 {[%emt 0:00:27]} Be3 {[%emt 0:01:25]} 56. Qd8+ {[%emt 0:01:06]} Kf7 {[%emt 0:00:17]} 57. h5 {[%emt 0:00:34]} Bg5 {[%emt 0:00:13]} 58. Qh8 {[%emt 0:01:17]} Nb2+ {[%emt 0:00:33]} 59. Kc2 {[%emt 0:02:03]} Nc4 {[%emt 0:00:02]} 60. Qh7+ {[%emt 0:00:29]} Kf6 {[%emt 0:00:11]} 61. Qg6+ {[%emt 0:02:33]} Ke7 {[%emt 0:00:51]} 62. Qg7+ {[%emt 0:00:39]} Kd6 {[%emt 0:00:10]} 63. Kd3 {[%emt 0:06:57]} Nb2+ {[%emt 0:00:07]} 64. Ke2 {[%emt 0:01:08]} Nc4 {[%emt 0:00:12]} 65. Kf3 {[%emt 0:01:13]} Nd2+ {[%emt 0:00:19]} 66. Kg4 {[%emt 0:01:26]} Ne4 {[%emt 0:00:19]} 67. Qf8+ {[%emt 0:01:40]} Kd7 {[%emt 0:00:07]} 68. Qb8 {[%emt 0:02:24]} Nf6+ {[%emt 0:00:22]} 69. Kf3 {[%emt 0:00:54]} Ne4 {[%emt 0:00:15]} 70. Qb7+ {[%emt 0:01:40]} Kd6 {[%emt 0:01:05]} 71. Ke2 {[%emt 0:21:08]} Nc3+ 1/2-1/2